bitfinex-derivatives/quotes_ETHF0:USTF0_20241018
["timestamp","ask_amount","ask_price","bid_price","bid_amount"]
[1729278882474,0.3749,2667.2,2666.9,1.83940242]
[1729278882475,0.37492,2667.1,2667.0,0.97801673]
[1729278882674,0.37492,2667.1,2667.0,2.19283002]
[1729278883273,0.37492,2667.1,2667.0,2.67928571]
[1729278883772,0.37492,2667.1,2667.0,3.05421571]
[1729278883974,2.48723,2667.3,2667.0,2.67928571]
[1729278884175,1.55,2667.3,2667.2,0.97836094]
[1729278884492,1.92489,2667.3,2667.2,0.97836094]
[1729278884771,0.7814,2667.3,2667.2,1.58878244]
[1729278884973,0.7612,2667.4,2667.3,0.37489]
[1729278885168,0.7898,2667.6,2667.5,0.37486]
[1729278885368,0.7898,2667.6,2667.5,3.05676895]
[1729278885670,0.7898,2667.6,2667.5,2.17475701]
[1729278885864,0.7898,2667.6,2667.5,2.0575541]
[1729278886072,0.7898,2667.6,2667.5,1.58874244]
[1729278886376,0.7898,2667.6,2667.5,0.37486]
[1729278887365,0.7898,2667.6,2667.4,3.2078]
[1729278887569,1.16465,2667.6,2667.4,0.37487]
[1729278887977,1.16465,2667.6,2667.2,1.1859151]
[1729278887978,0.37486,2667.5,2667.2,1.1859151]
[1729278888167,0.7898,2667.6,2667.2,1.1859151]
[1729278888168,0.37487,2667.4,2667.3,0.58604177]
[1729278888373,0.37489,2667.3,2667.2,0.3749]
[1729278888773,0.37489,2667.3,2667.1,0.37491]
[1729278888974,1.5363,2667.2,2667.1,0.37491]
[1729278889181,1.5363,2667.2,2667.1,0.8437902]
[1729278891077,1.5363,2667.2,2667.1,0.96101016]
[1729278891478,1.5363,2667.2,2667.1,0.37491]
[1729278893575,1.5363,2667.2,2667.1,1.84265251]
[1729278893779,1.5363,2667.2,2667.1,3.0552571]
[1729278895578,1.5363,2667.2,2667.1,1.58751459]
[1729278895881,1.5363,2667.2,2667.1,3.0552571]
[1729278897887,1.5363,2667.2,2667.1,4.4052571]
[1729278898479,1.5363,2667.2,2667.1,4.40538719]
[1729278899590,5.16979856,2667.6,2667.4,0.37487]
[1729278899591,2.33685856,2667.6,2667.4,0.37487]
[1729278899796,1.20036,2667.5,2667.3,2.70371547]
[1729278900084,2.02226,2667.5,2667.3,2.70371547]
[1729278900279,1.6474,2667.5,2667.4,0.37487]
[1729278900474,1.6474,2667.5,2667.4,2.56609484]
[1729278900778,1.6474,2667.5,2667.4,3.05500188]
[1729278901387,2.02226,2667.5,2667.4,1.21238937]
[1729278901692,2.02226,2667.5,2667.4,0.97886981]
[1729278901881,1.6474,2667.5,2667.3,1.35374981]
[1729278902079,3.37226,2667.5,2667.3,0.97886981]
[1729278902285,2.02226,2667.5,2667.3,0.97886981]
[1729278902590,0.37487,2667.4,2667.3,0.97886981]
[1729278902776,0.37487,2667.4,2667.3,2.32886981]
[1729278903788,2.02227,2667.5,2667.3,2.32886981]
[1729278903982,1.6474,2667.5,2667.4,2.70373178]
[1729278904190,1.6474,2667.5,2667.4,3.54143107]
[1729278904384,1.6474,2667.5,2667.4,2.32886178]
[1729278904385,2.02226,2667.5,2667.4,2.32886178]
[1729278904581,1.6474,2667.5,2667.4,2.70373178]
[1729278907189,3.37226,2667.5,2667.4,0.97886178]
[1729278907780,0.37487,2667.4,2667.3,2.32886178]
[1729278908085,0.37487,2667.4,2667.3,3.54226274]
[1729278908689,2.8273682,2667.4,2667.3,1.35]
[1729278911987,2.4524982,2667.4,2667.3,1.35]
[1729278912181,4.0998982,2667.5,2667.4,0.37487]
[1729278912387,2.8273482,2667.6,2667.4,2.1171]
[1729278912592,2.8273482,2667.6,2667.5,1.35]
[1729278913590,2.4524982,2667.6,2667.5,1.35]
[1729278913889,6.7946382,2667.7,2667.5,1.72485]
[1729278914094,6.4197982,2667.7,2667.6,0.37485]
[1729278914689,0.37485,2667.6,2667.5,1.72485]
[1729278914881,7.7697982,2667.7,2667.4,1.35]
[1729278915084,1.96610195,2667.5,2667.4,1.72487]
[1729278915689,0.37486,2667.6,2667.4,4.40487373]
[1729278915891,0.37486,2667.6,2667.5,0.97851466]
[1729278916893,1.13434,2667.7,2667.5,2.70336466]
[1729278917498,0.37485,2667.6,2667.5,2.32851466]
[1729278917891,1.35,2667.6,2667.4,2.32851466]
[1729278918093,0.37486,2667.5,2667.4,2.32851466]
[1729278918494,1.72486,2667.5,2667.4,0.97851466]
[1729278918699,0.37487,2667.4,2667.3,2.32851466]
[1729278918896,2.53757,2667.4,2667.3,0.9780518]
[1729278919100,2.53757,2667.4,2667.2,0.9780518]
[1729278919101,0.37489,2667.3,2667.2,0.9780518]
[1729278919303,0.37489,2667.3,2667.1,5.9107618]
[1729278919304,1.19089,2667.3,2667.1,5.9107618]
[1729278919603,0.8013,2667.2,2667.1,4.93271]
[1729278919803,0.8013,2667.2,2667.1,7.12281092]
[1729278920099,0.8013,2667.2,2667.1,6.14457263]
[1729278920493,1.1762,2667.2,2667.1,6.14457263]
[1729278920695,0.8013,2667.2,2667.1,6.14457263]
[1729278920890,0.8013,2667.2,2667.1,7.61231514]
[1729278921091,0.8013,2667.2,2667.1,7.61269274]
[1729278921304,0.8013,2667.2,2667.1,6.14495023]
[1729278922396,0.8013,2667.2,2667.1,7.61305202]
[1729278922704,0.8013,2667.2,2667.1,6.14530951]
[1729278924397,1.1762,2667.2,2667.1,2.70374786]
[1729278925406,0.8013,2667.2,2667.1,2.70374786]
[1729278925996,0.8013,2667.2,2667.1,2.32882786]
[1729278925997,1.1762,2667.2,2667.1,2.32882786]
[1729278926195,2.5262,2667.2,2667.1,2.32882786]
[1729278926401,1.1762,2667.2,2667.1,2.32882786]
[1729278926904,0.8013,2667.2,2667.1,2.32882786]
[1729278927095,0.8013,2667.2,2667.1,2.70374786]
[1729278927296,0.8013,2667.2,2667.1,1.72492]
[1729278927497,0.8013,2667.2,2667.1,2.70374786]
[1729278928703,1.1762,2667.2,2667.1,2.70374786]
[1729278928907,1.1762,2667.2,2667.1,1.72492]
[1729278929204,1.1762,2667.2,2667.1,2.70374786]
[1729278930510,1.1762,2667.2,2667.1,1.72492]
[1729278930701,3.14230195,2667.2,2667.1,1.72492]
[1729278931000,2.76740195,2667.2,2667.1,1.72492]
[1729278931206,3.14230195,2667.2,2667.1,1.72492]
[1729278933110,3.14230195,2667.2,2667.1,1.35]
[1729278933406,3.14230195,2667.2,2667.1,1.72492]
[1729278936312,1.1762,2667.2,2667.1,1.72492]
[1729278936702,0.8013,2667.2,2667.1,1.72492]
[1729278936899,1.1762,2667.2,2667.1,1.72492]
[1729278937419,3.14258645,2667.2,2667.1,1.72492]
[1729278938712,1.1762,2667.2,2667.1,3.91610978]
[1729278939617,1.1762,2667.2,2667.1,3.54118978]
[1729278939919,2.5262,2667.2,2667.1,0.97876468]
[1729278940312,1.1762,2667.2,2667.1,2.32876468]
[1729278941309,1.1762,2667.2,2667.1,2.70368468]
[1729278941519,1.1762,2667.2,2667.1,2.32876468]
[1729278942824,1.1762,2667.2,2667.1,2.70368468]
[1729278943127,0.816,2667.3,2667.2,0.3749]
[1729278943313,0.816,2667.3,2667.2,2.70366468]
[1729278944325,0.816,2667.3,2667.2,2.32876468]
[1729278944521,2.54089,2667.3,2667.2,1.35366468]
[1729278944820,2.54089,2667.3,2667.2,0.3749]
[1729278945023,0.816,2667.3,2667.2,0.3749]
[1729278945725,0.816,2667.3,2667.2,1.7249]
[1729278946124,0.816,2667.3,2667.1,0.8191]
[1729278946125,2.166,2667.3,2667.1,1.72491]
[1729278946314,2.34095653,2667.2,2667.1,1.35]
[1729278946521,2.34095653,2667.2,2667.1,1.72492]
[1729278948021,2.34095653,2667.2,2667.1,1.35]
[1729278948824,0.3749,2667.2,2667.1,1.35]
[1729278949131,2.3410795,2667.2,2667.1,1.35]
[1729278949331,1.35,2667.2,2666.9,1.72494]
[1729278949523,1.96620151,2667.0,2666.9,1.72494]
[1729278949722,2.34113151,2667.0,2666.9,1.35]
[1729278950019,2.34113151,2667.0,2666.9,1.72494]
[1729278950219,1.96620151,2667.0,2666.9,1.72494]
[1729278950622,4.46034151,2667.0,2666.8,3.2078]
[1729278950819,5.30524151,2667.0,2666.8,0.37495]
[1729278951023,1.96620151,2666.9,2666.8,1.72495]
[1729278951617,7.06580151,2666.9,2666.5,0.97876468]
[1729278951815,1.35,2666.6,2666.4,0.97876468]
[1729278952021,0.37503,2666.3,2666.1,2.70381468]
[1729278952324,2.1795,2666.2,2666.0,0.7658]
[1729278952523,2.55455,2666.2,2666.0,1.72507]
[1729278952726,0.7713,2666.1,2666.0,1.35]
[1729278952923,0.7713,2666.1,2666.0,1.72507]
[1729278953824,0.7713,2666.1,2666.0,3.91497601]
[1729278954231,0.7713,2666.1,2666.0,2.70383468]
[1729278955319,0.7713,2666.1,2666.0,1.72507]
[1729278958418,0.8449,2666.5,2666.2,0.37503]
[1729278958419,1.21991,2666.5,2666.2,0.37503]
[1729278958622,1.21991,2666.5,2666.0,2.32876468]
[1729278958623,3.35561,2666.5,2666.4,1.35]
[1729278958931,2.9806,2666.5,2666.4,1.35]
[1729278959227,3.3556,2666.5,2666.4,1.35]
[1729278960428,3.3556,2666.5,2666.4,1.72501]
[1729278960429,2.9806,2666.5,2666.4,1.72501]
[1729278962828,0.846,2666.6,2666.5,0.375]
[1729278963038,0.846,2666.6,2666.5,1.725]
[1729278964732,0.7649,2666.8,2666.7,0.37497]
[1729278964925,2.9441,2666.8,2666.7,0.37497]
[1729278965119,3.31906,2666.8,2666.7,0.37497]
[1729278965332,2.9441,2666.8,2666.7,0.37497]
[1729278966626,1.96647193,2667.3,2666.7,1.35]
[1729278966820,4.037,2667.1,2667.0,0.37492]
[1729278967024,0.8292,2667.1,2667.0,1.72492]
[1729278969245,2.1792,2667.1,2666.8,1.81316468]
[1729278969426,0.37497,2666.7,2666.6,0.97876468]
[1729278969629,1.72497,2666.7,2666.6,0.37499]
[1729278969835,1.72498,2666.7,2666.5,4.93279]
[1729278970130,2.4138,2666.6,2666.5,4.93279]
[1729278970343,2.78879,2666.6,2666.5,4.5578]
[1729278970638,2.4138,2666.6,2666.5,4.9328]
[1729278971636,2.78879,2666.6,2666.5,4.9328]
[1729278971834,2.4138,2666.6,2666.5,4.9328]
[1729278973533,2.78879,2666.6,2666.5,5.91156468]
[1729278973745,2.4138,2666.6,2666.5,5.91156468]
[1729278974240,2.4138,2666.6,2666.5,2.70376468]
[1729278975632,2.78879,2666.6,2666.5,2.32876468]
[1729278975830,4.13879,2666.6,2666.5,1.35]
[1729278976032,4.13879,2666.6,2666.3,0.97876468]
[1729278976033,2.4138,2666.6,2666.3,0.97876468]
[1729278976243,2.4138,2666.6,2666.2,4.56160468]
[1729278976244,0.37503,2666.3,2666.2,4.56160468]
[1729278976433,0.37503,2666.3,2666.2,4.5578]
[1729278976744,1.35,2666.4,2666.2,4.5578]
[1729278976941,0.37502,2666.4,2666.3,1.35]
[1729278977129,1.35,2666.5,2666.3,1.72503]
[1729278977330,2.4138,2666.6,2666.4,1.35]
[1729278977640,1.35,2667.0,2666.5,2.4460082]
[1729278977843,1.5518,2666.9,2666.8,0.37496]
[1729278978145,3.2078,2667.1,2666.7,0.97876468]
[1729278978444,3.9813,2667.1,2667.0,1.72493]
[1729278978748,0.7735,2667.1,2667.0,1.72493]
[1729278979435,2.1235,2667.1,2666.9,0.97876468]
[1729278979641,2.1235,2667.1,2666.5,3.9836]
[1729278979642,1.35,2667.0,2666.8,2.32876468]
[1729278979841,1.5806,2666.9,2666.8,2.70371468]
[1729278980041,1.95554,2666.9,2666.8,2.44599756]
[1729278980842,2.9306,2666.9,2666.7,0.97876468]
[1729278981142,0.37497,2666.7,2666.6,2.32876468]
[1729278981338,0.37497,2666.7,2666.6,1.46724004]
[1729278981536,1.14227,2666.7,2666.6,1.46724004]
[1729278981938,0.7673,2666.7,2666.6,1.46724004]
[1729278982143,0.7673,2666.7,2666.6,2.82099472]
[1729278983244,0.7673,2666.7,2666.6,2.70375468]
[1729278984035,0.7673,2666.7,2666.6,2.93326223]
[1729278986438,1.5806,2666.9,2666.6,2.55827223]
[1729278986639,2.3713,2666.9,2666.8,2.70171141]
[1729278987536,1.6046,2666.9,2666.8,2.70171141]
[1729278987732,2.9546,2666.9,2666.8,1.35171141]
[1729278988040,3.32954,2666.9,2666.7,1.35171141]
[1729278988240,2.9546,2666.9,2666.7,1.35171141]
[1729278988536,1.35,2666.8,2666.7,0.97675141]
[1729278988748,1.72496,2666.8,2666.7,0.97675141]
[1729278989439,1.72496,2666.8,2666.6,2.70173141]
[1729278989643,0.8412,2666.7,2666.6,2.70173141]
[1729278990035,2.1912,2666.7,2666.6,0.97675141]
[1729278990249,2.1912,2666.7,2666.2,5.16532936]
[1729278990250,1.31246,2666.6,2666.2,0.97747375]
[1729278990453,1.31246,2666.6,2665.8,5.16532936]
[1729278990454,0.37508,2666.0,2665.8,4.67594702]
[1729278990748,2.50978,2665.9,2665.8,3.2078]
[1729278991142,2.50978,2665.9,2665.4,2.33267936]
[1729278991143,0.37512,2665.7,2665.4,3.19329702]
[1729278991346,1.35,2665.6,2665.5,1.35]
[1729278991741,1.72513,2665.6,2665.5,1.35]
[1729278992050,1.35,2665.6,2665.5,1.35]
[1729278993144,1.72513,2665.6,2665.5,1.35]
[1729278993339,1.72513,2665.6,2665.4,0.37515]
[1729278993546,2.1117,2665.5,2665.3,1.35]
[1729278993851,2.1117,2665.5,2665.3,0.37516]
[1729278993852,1.13685,2665.5,2665.3,0.37516]
[1729278994042,1.13685,2665.5,2665.1,1.16088]
[1729278994043,0.37516,2665.4,2665.1,1.16088]
[1729278994243,1.19917,2665.3,2665.1,0.7857]
[1729278994745,1.19917,2665.3,2665.1,1.1609]
[1729278995140,0.824,2665.3,2665.1,1.16085]
[1729278995343,0.824,2665.3,2665.2,0.37515]
[1729278995647,0.824,2665.3,2665.1,1.16085]
[1729278995851,1.19914,2665.3,2665.1,0.7857]
[1729278996353,1.19914,2665.3,2665.0,0.37516]
[1729278996852,0.824,2665.3,2664.9,0.37518]
[1729278997051,0.824,2665.3,2664.7,7.60594702]
[1729278997357,3.58297,2665.1,2664.8,0.3752]
[1729278997556,0.37515,2665.2,2664.9,0.37518]
[1729278997856,0.824,2665.3,2664.7,2.93]
[1729278998148,0.37516,2665.1,2664.8,0.37519]
[1729278998355,0.37516,2665.1,2664.7,2.93]
[1729278998757,0.37516,2665.1,2664.8,0.37519]
[1729278998961,0.824,2665.3,2664.7,2.93]
[1729278999252,0.37517,2665.1,2664.8,0.37519]
[1729278999445,0.37516,2665.1,2664.8,0.37519]
[1729278999843,3.58296,2665.2,2664.9,0.37519]
[1729279000042,3.58296,2665.2,2664.9,2.93]
[1729279000043,3.2078,2665.2,2664.9,2.93]
[1729279000252,3.58296,2665.2,2665.0,0.8415]
[1729279000757,0.37516,2665.2,2665.0,0.8415]
[1729279001056,0.37515,2665.2,2665.0,0.8415]
[1729279001256,0.824,2665.3,2665.0,0.8415]
[1729279001756,0.37516,2665.1,2665.0,0.8415]
[1729279002650,0.824,2665.3,2664.7,3.2078]
[1729279002852,0.37517,2665.1,2664.9,0.37518]
[1729279003443,0.3752,2664.8,2664.7,3.2078]
[1729279003647,0.3752,2664.9,2664.7,3.58301]
[1729279003855,1.1804,2664.8,2664.7,3.2078]
[1729279004455,1.1804,2664.8,2664.4,0.37525]
[1729279004456,0.37523,2664.6,2664.4,0.37525]
[1729279004756,0.8052,2664.8,2664.3,3.2078]
[1729279004957,0.8052,2664.8,2664.4,0.37525]
[1729279005250,0.37523,2664.7,2664.4,0.37525]
[1729279005458,0.8052,2664.8,2664.4,0.37525]
[1729279005655,0.37523,2664.6,2664.4,0.37525]
[1729279006255,0.37522,2664.7,2664.4,0.37525]
[1729279007954,0.37525,2664.5,2664.3,3.2078]
[1729279008149,2.93,2664.7,2664.3,3.2078]
[1729279008358,2.93,2664.7,2664.3,3.58307]
[1729279008561,0.37524,2664.6,2664.3,3.58307]
[1729279008863,0.37525,2664.5,2664.3,3.58307]
[1729279009161,0.37524,2664.6,2664.3,3.58307]
[1729279009367,0.37525,2664.5,2664.3,3.2078]
[1729279009560,1.18555,2664.5,2664.3,3.58307]
[1729279010248,1.18555,2664.5,2664.3,3.58306]
[1729279010249,0.8103,2664.5,2664.3,3.58306]
[1729279010449,1.18554,2664.5,2664.3,3.58306]
[1729279010655,1.18554,2664.5,2664.3,3.2078]
[1729279010860,1.18555,2664.5,2664.3,3.2078]
[1729279011055,1.18555,2664.5,2664.3,3.58307]
[1729279011257,1.18555,2664.5,2664.3,3.2078]
[1729279011551,0.8103,2664.5,2664.3,3.2078]
[1729279011756,0.37526,2664.4,2664.3,3.2078]
[1729279011958,0.37529,2664.2,2664.0,3.58311]
[1729279012154,3.7403,2664.5,2663.9,1.19892]
[1729279012155,4.5127,2664.3,2663.9,1.19892]
[1729279012357,0.3753,2664.1,2663.9,1.19892]
[1729279013266,0.3753,2664.1,2663.7,0.2145378]
[1729279013267,4.5127,2664.3,2663.6,3.2078]
[1729279013455,0.37532,2664.0,2663.8,0.37534]
[1729279013654,0.37532,2664.0,2663.6,3.2078]
[1729279014066,5.45089,2664.3,2663.8,0.37533]
[1729279014267,0.37532,2664.0,2663.8,0.37534]
[1729279014664,0.37529,2664.2,2663.7,0.37535]
[1729279014968,0.37533,2663.9,2663.7,0.37535]
[1729279015169,0.37532,2664.0,2663.8,0.37534]
[1729279015357,0.37534,2663.9,2663.6,3.58316]
[1729279015562,0.7942,2664.1,2663.5,1.6761]
[1729279015757,0.37534,2663.9,2663.6,3.58317]
[1729279015958,0.7942,2664.1,2663.6,3.58317]
[1729279015959,0.37534,2663.8,2663.6,3.58317]
[1729279016358,0.7942,2664.1,2663.6,3.58317]
[1729279016555,0.37534,2663.8,2663.6,3.58317]
[1729279016756,0.37534,2663.8,2663.6,0.37537]
[1729279017365,1.73247,2664.1,2663.5,1.88261848]
[1729279017366,0.37534,2663.9,2663.5,1.88261848]
[1729279017570,0.37534,2663.9,2663.7,0.37535]
[1729279018270,0.7942,2664.1,2663.5,1.88261848]
[1729279018463,0.7942,2664.1,2663.6,0.37537]
[1729279018464,0.37535,2663.8,2663.6,0.37537]
[1729279018663,0.37534,2663.9,2663.6,0.37536]
[1729279018965,4.002,2664.1,2663.5,1.6761]
[1729279019160,0.37534,2663.9,2663.6,0.37537]
[1729279019361,0.37535,2663.8,2663.6,0.37537]
[1729279020366,2.93,2664.0,2663.5,1.6761]
[1729279020574,0.37533,2663.9,2663.7,0.37535]
[1729279020771,0.37533,2663.9,2663.6,0.37536]
[1729279020971,0.37534,2663.8,2663.6,0.37536]
[1729279021276,1.15284,2663.8,2663.6,0.37536]
[1729279021569,1.15284,2663.8,2663.5,1.6761]
[1729279021570,0.7775,2663.8,2663.5,1.6761]
[1729279022159,0.7775,2663.8,2663.7,0.37536]
[1729279022772,0.7775,2663.8,2663.5,1.6761]
[1729279023164,0.7775,2663.8,2663.5,2.05148]
[1729279023165,0.37536,2663.7,2663.5,2.05148]
[1729279023467,0.37537,2663.6,2663.5,0.8451]
[1729279023777,0.8219,2663.6,2663.5,1.22048]
[1729279023975,0.8219,2663.6,2663.5,0.8451]
[1729279024178,0.8219,2663.6,2663.5,1.22048]
[1729279024668,0.8219,2663.6,2663.5,0.8451]
[1729279024974,0.8219,2663.6,2663.5,1.22048]
[1729279025172,0.8219,2663.6,2663.2,1.14607242]
[1729279025173,0.3754,2663.4,2663.2,0.37542]
[1729279025374,0.7856,2663.3,2663.2,0.37543]
[1729279025980,0.8219,2663.6,2663.1,3.9817]
[1729279026175,0.8219,2663.6,2663.5,0.37538]
[1729279027472,0.8219,2663.6,2663.3,1.9536]
[1729279027674,0.3754,2663.5,2663.3,0.37541]
[1729279027976,0.7727,2663.5,2663.3,0.37541]
[1729279028176,1.1481,2663.5,2663.3,0.37541]
[1729279028374,0.3754,2663.4,2663.3,0.37541]
[1729279028977,0.3754,2663.4,2663.2,0.37543]
[1729279029179,0.37541,2663.3,2663.2,0.37543]
[1729279029380,0.7727,2663.5,2663.1,3.9817]
[1729279029681,0.37543,2663.2,2663.1,3.2078]
[1729279029868,0.37543,2663.2,2663.0,0.37545]
[1729279030071,0.7939,2663.1,2663.0,0.37545]
[1729279030278,0.37543,2663.2,2663.0,0.37545]
[1729279030583,0.37545,2663.1,2662.9,0.37546]
[1729279031383,1.19304,2663.2,2663.0,0.37545]
[1729279032277,0.8176,2663.2,2663.1,0.37544]
[1729279032878,0.8176,2663.2,2662.8,4.68961]
[1729279033078,1.19303,2663.2,2663.0,0.37544]
[1729279033578,1.19303,2663.2,2662.8,4.68961]
[1729279033981,0.8176,2663.2,2663.1,0.37544]
[1729279034579,1.19303,2663.2,2663.0,0.37545]
[1729279035189,1.19303,2663.2,2663.0,0.37544]
[1729279035577,1.19303,2663.2,2663.0,0.37545]
[1729279036186,0.8176,2663.2,2662.8,4.68961]
[1729279036481,0.8069,2663.4,2663.0,3.2078]
[1729279036683,0.37539,2663.5,2663.3,0.3754]
[1729279036872,0.37537,2663.6,2663.4,1.15069]
[1729279037075,0.7675,2663.7,2663.4,1.15069]
[1729279037076,0.37538,2663.5,2663.4,0.7753]
[1729279037282,0.7675,2663.7,2663.4,0.7753]
[1729279037682,2.93,2663.5,2663.4,0.7753]
[1729279037980,0.3754,2663.4,2663.3,3.2078]
[1729279038185,1.9693,2663.4,2663.3,3.2078]
[1729279038677,5.7237,2663.4,2663.3,3.2078]
[1729279042489,0.37541,2663.3,2663.2,0.37543]
[1729279044291,1.5939,2663.4,2662.9,1.72148]
[1729279044484,1.21144,2663.2,2663.1,0.37543]
[1729279044683,0.37545,2663.1,2663.0,0.37544]
[1729279045281,0.836,2663.2,2662.7,4.88343606]
[1729279045488,0.37547,2662.9,2662.8,0.37547]
[1729279045687,4.05526,2663.0,2662.9,0.37547]
[1729279046490,3.6798,2663.0,2662.7,0.7919]
[1729279046693,0.37548,2662.8,2662.7,1.16739]
[1729279047803,0.37548,2662.8,2662.7,0.7919]
[1729279048509,1.20618,2662.9,2662.7,1.16739]
[1729279048695,0.8307,2662.9,2662.7,0.7919]
[1729279048897,0.37548,2662.8,2662.7,0.7919]
[1729279049895,0.37548,2662.8,2662.7,1.1674]
[1729279050096,1.20618,2662.9,2662.7,0.7919]
[1729279050299,1.20618,2662.9,2662.7,1.16739]
[1729279050900,0.8307,2662.9,2662.7,0.7919]
[1729279051099,0.37548,2662.8,2662.7,0.7919]
[1729279051302,0.37553,2662.5,2662.4,1.46814702]
[1729279051500,2.93,2662.5,2662.3,0.37555]
[1729279051902,0.37555,2662.4,2662.2,1.11566]
[1729279052203,3.6792,2662.5,2662.2,0.7401]
[1729279052504,0.823,2662.4,2661.9,1.67735099]
[1729279052806,2.93,2662.3,2661.8,1.5315]
[1729279053002,2.93,2662.3,2661.8,0.7503]
[1729279053003,0.37561,2661.9,2661.8,0.7503]
[1729279053307,2.93,2661.9,2661.7,3.2078]
[1729279053610,1.6275,2661.8,2661.7,3.2078]
[1729279054203,2.00312,2661.8,2661.7,3.2078]
[1729279054400,1.6275,2661.8,2661.7,3.2078]
[1729279054917,1.6275,2661.8,2661.6,0.37564]
[1729279055212,1.6275,2661.8,2661.7,0.37564]
[1729279055508,1.20457,2662.2,2662.0,0.37559]
[1729279055711,1.5949,2662.3,2661.7,0.9391]
[1729279055905,4.10822,2662.6,2662.3,0.37554]
[1729279056103,42.3949,2662.5,2662.3,0.37555]
[1729279056313,42.3949,2662.5,2662.2,0.37556]
[1729279056314,1.5949,2662.5,2662.2,0.37556]
[1729279056513,1.5949,2662.5,2662.3,0.37554]
[1729279056722,2.93,2662.4,2662.2,0.7958]
[1729279056918,1.5949,2662.5,2662.2,0.7958]
[1729279057213,1.5949,2662.5,2662.3,0.37555]
[1729279057613,1.5949,2662.5,2662.4,0.37554]
[1729279058115,2.93,2662.5,2662.4,0.37554]
[1729279061011,2.93,2662.5,2662.4,3.58334]
[1729279061713,4.5167,2662.5,2662.4,3.58334]
[1729279066417,4.5167,2662.5,2662.4,3.2078]
[1729279066623,4.5167,2662.5,2662.4,3.58334]
[1729279067523,4.5167,2662.5,2662.4,3.2078]
[1729279067917,4.89223,2662.5,2662.4,3.2078]
[1729279069220,8.64823,2662.5,2662.4,3.2078]
[1729279069426,11.85603,2662.5,2661.8,3.2078]
[1729279069631,2.93,2662.2,2661.8,3.2078]
[1729279069829,1.2525,2662.1,2661.8,3.2078]
[1729279070025,1.01261,2662.0,2661.9,0.37561]
[1729279070222,1.0126,2662.0,2661.9,0.37561]
[1729279070823,1.0126,2662.0,2661.8,3.2078]
[1729279070824,1.0126,2662.0,2661.8,3.58341]
[1729279071023,1.0126,2662.0,2661.9,0.37561]
[1729279071423,1.0126,2662.0,2661.8,3.2078]
[1729279071424,0.637,2662.0,2661.8,3.2078]
[1729279071619,0.37561,2661.9,2661.8,3.58341]
[1729279071824,1.01261,2662.0,2661.9,0.37561]
[1729279072044,0.37561,2661.9,2661.8,3.2078]
[1729279072334,0.37564,2661.8,2661.7,0.37564]
[1729279072536,0.37564,2661.7,2661.6,0.37564]
[1729279072733,0.37564,2661.7,2661.4,4.4871]
[1729279072734,2.93,2661.7,2661.4,1.2793]
[1729279072927,1.68136,2661.6,2661.5,0.37566]
[1729279073125,1.3057,2661.6,2661.5,0.37566]
[1729279074030,1.3057,2661.6,2661.4,0.37567]
[1729279074230,1.68135,2661.6,2661.4,0.37567]
[1729279075324,1.3057,2661.6,2661.3,0.37569]
[1729279075529,1.3057,2661.6,2661.2,0.3757]
[1729279075530,1.03168,2661.5,2661.2,0.3757]
[1729279075735,1.03168,2661.5,2661.3,0.37569]
[1729279075934,1.03167,2661.5,2661.3,0.37569]
[1729279076333,1.03167,2661.5,2661.1,3.2078]
[1729279076528,1.03167,2661.5,2661.3,0.37569]
[1729279076734,1.03167,2661.5,2661.2,0.3757]
[1729279076937,1.03167,2661.5,2661.1,3.2078]
[1729279077133,0.656,2661.5,2661.1,3.2078]
[1729279077327,1.03167,2661.5,2661.1,3.2078]
[1729279077531,1.03167,2661.5,2661.3,0.37569]
[1729279077728,1.03167,2661.5,2661.2,0.37571]
[1729279077939,1.03167,2661.5,2661.3,0.37569]
[1729279078134,1.03167,2661.5,2661.1,3.2078]
[1729279078135,0.656,2661.5,2661.4,0.37568]
[1729279078641,0.656,2661.5,2661.1,3.2078]
[1729279078642,1.03168,2661.5,2661.1,3.2078]
[1729279078938,0.37568,2661.4,2661.2,0.37571]
[1729279079232,0.656,2661.5,2661.3,0.37569]
[1729279079434,1.03167,2661.5,2661.3,0.37569]
[1729279081034,1.3057,2661.6,2661.5,0.37567]
[1729279081340,0.6436,2661.6,2661.5,0.37567]
[1729279081834,1.01926,2661.6,2661.5,0.37567]
[1729279082041,0.6436,2661.6,2661.5,0.37567]
[1729279082237,0.6436,2661.6,2661.1,4.1471]
[1729279082238,0.6436,2661.6,2661.1,3.2078]
[1729279082539,0.6436,2661.6,2661.4,0.37567]
[1729279082540,0.6411,2661.5,2661.4,0.37567]
[1729279083234,0.6411,2661.5,2661.4,0.37568]
[1729279083235,1.01677,2661.5,2661.4,0.37568]
[1729279083431,1.01677,2661.5,2661.3,0.37568]
[1729279083625,0.6411,2661.5,2661.4,0.37568]
[1729279083829,0.6411,2661.5,2661.2,0.6168]
[1729279084038,1.01677,2661.5,2661.3,0.37569]
[1729279084631,1.01677,2661.5,2661.2,0.6168]
[1729279084831,0.6411,2661.5,2661.4,0.37568]
[1729279085242,0.6411,2661.5,2661.3,0.37569]
[1729279085243,1.01677,2661.5,2661.3,0.37569]
[1729279085739,0.6411,2661.5,2661.4,0.37568]
[1729279086336,1.01677,2661.5,2661.3,0.37568]
[1729279086541,1.01677,2661.5,2661.4,0.37568]
[1729279087444,0.37569,2661.3,2661.2,0.9925]
[1729279087747,0.37569,2661.4,2661.2,0.37571]
[1729279087938,3.5711,2661.5,2661.1,3.8814]
[1729279088139,0.37569,2661.4,2661.2,0.3757]
[1729279088540,0.37569,2661.4,2661.1,3.8814]